[Event "Early-Titled-Tuesday-Blitz-February-27-2024"]
[Site "Chess.com"]
[Date "2024.02.27"]
[Round "6"]
[White "Kunalm64"]
[Black "Chessmissile07"]
[Result "0-1"]
[WhiteElo "2577"]
[BlackElo "2885"]
[TimeControl "180+1"]
[EndTime "9:05:39 PST"]
[Termination "Chessmissile07 won by resignation"]

1. e4 {[%clk 0:02:59.3]} 1... a6 {[%clk 0:03:00.9]} 2. d4 {[%clk 0:02:57]} 2...
d5 {[%clk 0:03:01]} 3. exd5 {[%clk 0:02:54.1]} 3... Qxd5 {[%clk 0:03:01.9]} 4.
Nc3 {[%clk 0:02:51.1]} 4... Qd6 {[%clk 0:03:01.9]} 5. Nf3 {[%clk 0:02:44.8]}
5... Nf6 {[%clk 0:03:01.8]} 6. g3 {[%clk 0:02:42.3]} 6... g6 {[%clk 0:02:39.4]}
7. Bg2 {[%clk 0:02:41.6]} 7... Bg7 {[%clk 0:02:39.4]} 8. O-O {[%clk 0:02:41.4]}
8... O-O {[%clk 0:02:38.6]} 9. Bf4 {[%clk 0:02:39.8]} 9... Qb6 {[%clk
0:02:38.4]} 10. Rb1 {[%clk 0:02:35.2]} 10... Nc6 {[%clk 0:02:26.5]} 11. Na4
{[%clk 0:02:18.6]} 11... Qa5 {[%clk 0:02:24.3]} 12. c3 {[%clk 0:02:17.8]} 12...
Bf5 {[%clk 0:02:05.5]} 13. Rc1 {[%clk 0:01:43.2]} 13... b5 {[%clk 0:02:04.9]}
14. Nc5 {[%clk 0:01:40.5]} 14... Qxa2 {[%clk 0:02:04.9]} 15. Nh4 {[%clk
0:01:34]} 15... Bg4 {[%clk 0:01:55.6]} 16. Qc2 {[%clk 0:01:32.3]} 16... Nd5
{[%clk 0:01:15.8]} 17. Ra1 {[%clk 0:00:30.7]} 17... Qc4 {[%clk 0:01:15.2]} 18.
b3 {[%clk 0:00:30.9]} 18... Qxc3 {[%clk 0:00:55.4]} 19. Qxc3 {[%clk 0:00:30.3]}
19... Nxc3 {[%clk 0:00:56.3]} 20. Bxc6 {[%clk 0:00:30.4]} 20... Ne2+ {[%clk
0:00:47.8]} 21. Kg2 {[%clk 0:00:30.1]} 21... Rad8 {[%clk 0:00:25.8]} 22. Bxc7
{[%clk 0:00:20.8]} 22... Rc8 {[%clk 0:00:24.3]} 23. Nxa6 {[%clk 0:00:16.4]}
23... Nxd4 {[%clk 0:00:19.9]} 24. Bb7 {[%clk 0:00:16.6]} 24... Rce8 {[%clk
0:00:17.8]} 25. h3 {[%clk 0:00:16.2]} 25... Nxb3 {[%clk 0:00:15.8]} 26. Rab1
{[%clk 0:00:13.5]} 26... Be6 {[%clk 0:00:16.4]} 27. Rfe1 {[%clk 0:00:12.6]}
27... Nd4 {[%clk 0:00:14.1]} 28. Nf3 {[%clk 0:00:12.7]} 28... Nxf3 {[%clk
0:00:11.9]} 29. Bxf3 {[%clk 0:00:13.3]} 29... Bc4 {[%clk 0:00:12.3]} 30. Bc6
{[%clk 0:00:11.2]} 30... Rc8 {[%clk 0:00:12.5]} 31. Rxe7 {[%clk 0:00:10.9]}
31... Bf6 {[%clk 0:00:12.7]} 32. Rd7 {[%clk 0:00:10.2]} 32... b4 {[%clk
0:00:09]} 33. Nxb4 {[%clk 0:00:07.6]} 33... Be6 {[%clk 0:00:09.5]} 34. Na6
{[%clk 0:00:07.6]} 34... Bxd7 {[%clk 0:00:09.3]} 35. Bxd7 {[%clk 0:00:07.6]}
35... Ra8 {[%clk 0:00:10.2]} 36. Nc5 {[%clk 0:00:07.4]} 36... Bd4 {[%clk
0:00:09.9]} 37. Ne4 {[%clk 0:00:07.1]} 37... Ra7 {[%clk 0:00:10.3]} 38. Rd1
{[%clk 0:00:06.4]} 38... Rxc7 {[%clk 0:00:09.2]} 39. Rxd4 {[%clk 0:00:06]} 39...
Rd8 {[%clk 0:00:09.8]} 40. Rd2 {[%clk 0:00:05.1]} 40... Kg7 {[%clk 0:00:09.2]}
41. Bb5 {[%clk 0:00:03.4]} 41... Rxd2 {[%clk 0:00:08.1]} 42. Nxd2 {[%clk
0:00:03.7]} 42... Rc5 {[%clk 0:00:08.8]} 43. Be2 {[%clk 0:00:04.1]} 43... Rc2
{[%clk 0:00:09]} 44. Kf3 {[%clk 0:00:03.9]} 44... Rxd2 {[%clk 0:00:09.4]} 45.
Ke3 {[%clk 0:00:04.6]} 45... Rb2 {[%clk 0:00:09.7]} 46. h4 {[%clk 0:00:05.2]}
46... h5 {[%clk 0:00:09.7]} 47. f4 {[%clk 0:00:05.1]} 47... Kf6 {[%clk
0:00:08.9]} 48. Kf2 {[%clk 0:00:05.7]} 48... Kf5 {[%clk 0:00:06.6]} 49. Kf3
{[%clk 0:00:06.2]} 49... Rb3+ {[%clk 0:00:06.9]} 50. Kf2 {[%clk 0:00:06.7]}
50... Ke4 {[%clk 0:00:07.4]} 51. Bd1 {[%clk 0:00:06.5]} 51... Rb2+ {[%clk
0:00:07.7]} 52. Be2 {[%clk 0:00:07]} 52... f5 {[%clk 0:00:07.8]} 0-1

[Event "Early-Titled-Tuesday-Blitz-February-27-2024"]
[Site "Chess.com"]
[Date "2024.02.27"]
[Round "6"]
[White "karinachess1"]
[Black "Rogarcia1"]
[Result "0-1"]
[WhiteElo "2618"]
[BlackElo "2512"]
[TimeControl "180+1"]
[EndTime "9:05:39 PST"]
[Termination "Rogarcia1 won on time"]

1. d4 {[%clk 0:03:00.9]} 1... d5 {[%clk 0:02:58.3]} 2. c4 {[%clk 0:03:01]} 2...
c6 {[%clk 0:02:58.1]} 3. Nf3 {[%clk 0:03:00.8]} 3... Nf6 {[%clk 0:02:58.1]} 4.
g3 {[%clk 0:03:01.3]} 4... Bf5 {[%clk 0:02:52.8]} 5. Qb3 {[%clk 0:03:01.2]} 5...
Qb6 {[%clk 0:02:47.5]} 6. Nc3 {[%clk 0:03:01.4]} 6... e6 {[%clk 0:02:39.4]} 7.
c5 {[%clk 0:03:01.8]} 7... Qxb3 {[%clk 0:02:35.7]} 8. axb3 {[%clk 0:03:02.7]}
8... h6 {[%clk 0:02:36]} 9. Bf4 {[%clk 0:03:01.3]} 9... Nbd7 {[%clk 0:02:35.3]}
10. h4 {[%clk 0:02:59.9]} 10... Be7 {[%clk 0:02:34.4]} 11. b4 {[%clk 0:02:58.1]}
11... O-O {[%clk 0:02:33.3]} 12. b5 {[%clk 0:02:51.1]} 12... Nh7 {[%clk
0:02:25.7]} 13. b4 {[%clk 0:01:58.8]} 13... g5 {[%clk 0:02:24]} 14. hxg5 {[%clk
0:01:59]} 14... hxg5 {[%clk 0:02:24]} 15. Bd2 {[%clk 0:01:54.6]} 15... f6 {[%clk
0:02:05.5]} 16. e3 {[%clk 0:01:45.2]} 16... e5 {[%clk 0:02:05.2]} 17. bxc6
{[%clk 0:01:44.6]} 17... bxc6 {[%clk 0:02:03.4]} 18. Ra6 {[%clk 0:01:42.8]}
18... e4 {[%clk 0:01:46.5]} 19. Ng1 {[%clk 0:01:35.2]} 19... Nb8 {[%clk
0:01:46.1]} 20. Ra4 {[%clk 0:01:35.4]} 20... Bd7 {[%clk 0:01:34.9]} 21. Nge2
{[%clk 0:01:16.7]} 21... a5 {[%clk 0:01:21.8]} 22. bxa5 {[%clk 0:00:57.8]} 22...
Na6 {[%clk 0:01:20.3]} 23. Nc1 {[%clk 0:00:53.3]} 23... Rfb8 {[%clk 0:01:18.2]}
24. N1a2 {[%clk 0:00:29.9]} 24... Bd8 {[%clk 0:01:18]} 25. Be2 {[%clk
0:00:27.2]} 25... Rb2 {[%clk 0:01:08.3]} 26. Bc1 {[%clk 0:00:27.2]} 26... Rb3
{[%clk 0:01:05.3]} 27. Bd1 {[%clk 0:00:23]} 27... Rb7 {[%clk 0:00:59.8]} 28. Be2
{[%clk 0:00:21.7]} 28... Rba7 {[%clk 0:00:56.5]} 29. O-O {[%clk 0:00:17.5]}
29... Nb8 {[%clk 0:00:55.1]} 30. a6 {[%clk 0:00:12.9]} 30... Nxa6 {[%clk
0:00:54.7]} 31. Bd2 {[%clk 0:00:13.3]} 31... Nb8 {[%clk 0:00:51.2]} 32. Rxa7
{[%clk 0:00:13.5]} 32... Rxa7 {[%clk 0:00:51.7]} 33. Rb1 {[%clk 0:00:14.4]}
33... Bc7 {[%clk 0:00:49.8]} 34. Nb4 {[%clk 0:00:13.9]} 34... Nf8 {[%clk
0:00:46.4]} 35. Kg2 {[%clk 0:00:12]} 35... Kg7 {[%clk 0:00:42.4]} 36. f3 {[%clk
0:00:12.3]} 36... f5 {[%clk 0:00:41.2]} 37. g4 {[%clk 0:00:12.3]} 37... exf3+
{[%clk 0:00:39.6]} 38. Bxf3 {[%clk 0:00:13.2]} 38... fxg4 {[%clk 0:00:39.8]} 39.
Be2 {[%clk 0:00:13.7]} 39... Ng6 {[%clk 0:00:38.1]} 40. Be1 {[%clk 0:00:12]}
40... Nh4+ {[%clk 0:00:37.8]} 41. Kg1 {[%clk 0:00:09]} 41... Bf5 {[%clk
0:00:37]} 42. Rc1 {[%clk 0:00:04.8]} 42... Nf3+ {[%clk 0:00:37.2]} 43. Bxf3
{[%clk 0:00:05]} 43... gxf3 {[%clk 0:00:37.4]} 44. Bf2 {[%clk 0:00:04.5]} 44...
Rb7 {[%clk 0:00:33.3]} 45. Nc2 {[%clk 0:00:03.7]} 45... Rb2 {[%clk 0:00:33]} 46.
Ne1 {[%clk 0:00:03.4]} 46... g4 {[%clk 0:00:33.5]} 47. e4 {[%clk 0:00:03.3]}
47... dxe4 {[%clk 0:00:33.3]} 48. d5 {[%clk 0:00:03.4]} 48... cxd5 {[%clk
0:00:29.8]} 49. Bd4+ {[%clk 0:00:03.7]} 49... Kg6 {[%clk 0:00:25.6]} 50. Nxd5
{[%clk 0:00:04.6]} 50... Bh2+ {[%clk 0:00:22.9]} 51. Kh1 {[%clk 0:00:04.7]}
51... Re2 {[%clk 0:00:20.4]} 52. Ne7+ {[%clk 0:00:03.4]} 52... Kg5 {[%clk
0:00:20.2]} 53. Nxf5 {[%clk 0:00:03.3]} 53... Kxf5 {[%clk 0:00:20.6]} 54. c6
{[%clk 0:00:03.7]} 54... Nxc6 {[%clk 0:00:17.7]} 55. Rc5+ {[%clk 0:00:03.1]}
55... Ne5 {[%clk 0:00:16.2]} 56. Nc2 {[%clk 0:00:01.7]} 56... f2 {[%clk
0:00:13.5]} 57. Kg2 {[%clk 0:00:01.6]} 57... g3 {[%clk 0:00:12.3]} 58. Bxe5
{[%clk 0:00:01.4]} 58... Kg4 {[%clk 0:00:12]} 59. Nd4 {[%clk 0:00:01.5]} 59...
Re1 {[%clk 0:00:11.7]} 0-1

[Event "Early-Titled-Tuesday-Blitz-February-27-2024"]
[Site "Chess.com"]
[Date "2024.02.27"]
[Round "6"]
[White "Statham_01"]
[Black "eightbyeightchess"]
[Result "0-1"]
[WhiteElo "2554"]
[BlackElo "2414"]
[TimeControl "180+1"]
[EndTime "9:05:39 PST"]
[Termination "eightbyeightchess won by resignation"]

1. e4 {[%clk 0:03:00.9]} 1... d5 {[%clk 0:02:58.9]} 2. exd5 {[%clk 0:03:00.7]}
2... Nf6 {[%clk 0:02:59]} 3. Nf3 {[%clk 0:02:57.4]} 3... Qxd5 {[%clk 0:02:53.4]}
4. d4 {[%clk 0:02:57]} 4... Bg4 {[%clk 0:02:53.3]} 5. Be2 {[%clk 0:02:57.3]}
5... Nc6 {[%clk 0:02:52.5]} 6. c4 {[%clk 0:02:55.9]} 6... Qh5 {[%clk 0:02:51.2]}
7. d5 {[%clk 0:02:56.2]} 7... O-O-O {[%clk 0:02:49.2]} 8. Qa4 {[%clk 0:02:56.8]}
8... Ne5 {[%clk 0:02:40.8]} 9. Nxe5 {[%clk 0:02:24.6]} 9... Qxe5 {[%clk
0:01:48.3]} 10. Nc3 {[%clk 0:02:16.3]} 10... Bxe2 {[%clk 0:01:48.2]} 11. Nxe2
{[%clk 0:02:16.6]} 11... e6 {[%clk 0:01:48.8]} 12. Qxa7 {[%clk 0:02:10]} 12...
Bb4+ {[%clk 0:01:48.3]} 13. Kf1 {[%clk 0:02:02.8]} 13... Bd6 {[%clk 0:01:09]}
14. Qa8+ {[%clk 0:01:46.6]} 14... Kd7 {[%clk 0:01:08.9]} 15. Qxb7 {[%clk
0:01:45.8]} 15... exd5 {[%clk 0:01:09.4]} 16. Bf4 {[%clk 0:01:41.9]} 16... Qe4
{[%clk 0:01:05]} 17. Bxd6 {[%clk 0:01:24.6]} 17... Kxd6 {[%clk 0:01:05.9]} 18.
c5+ {[%clk 0:01:25.3]} 18... Kd7 {[%clk 0:00:56.9]} 19. Qb5+ {[%clk 0:01:08.1]}
19... Ke7 {[%clk 0:00:29.9]} 20. Re1 {[%clk 0:01:06.9]} 20... Kf8 {[%clk
0:00:29.8]} 21. Nc3 {[%clk 0:01:03.8]} 21... Qc2 {[%clk 0:00:28.1]} 22. c6
{[%clk 0:00:55.3]} 22... d4 {[%clk 0:00:25.2]} 23. Qc5+ {[%clk 0:00:50.3]} 23...
Kg8 {[%clk 0:00:25]} 24. Qe7 {[%clk 0:00:50.5]} 24... Qd3+ {[%clk 0:00:22.2]}
25. Ne2 {[%clk 0:00:43.4]} 25... Re8 {[%clk 0:00:21.4]} 26. Qxc7 {[%clk
0:00:39.9]} 26... g6 {[%clk 0:00:20.3]} 27. Qg3 {[%clk 0:00:35.9]} 27... Qc4
{[%clk 0:00:17.5]} 28. b3 {[%clk 0:00:20.4]} 28... Qa6 {[%clk 0:00:14.3]} 29. c7
{[%clk 0:00:08.4]} 29... Kg7 {[%clk 0:00:10.7]} 30. h4 {[%clk 0:00:07.6]} 30...
d3 {[%clk 0:00:11]} 31. h5 {[%clk 0:00:02.4]} 31... dxe2+ {[%clk 0:00:09.2]} 32.
Kg1 {[%clk 0:00:03.1]} 32... h6 {[%clk 0:00:05.7]} 33. Qc3 {[%clk 0:00:03.3]}
33... Re6 {[%clk 0:00:03.7]} 34. hxg6 {[%clk 0:00:02.8]} 34... fxg6 {[%clk
0:00:03.8]} 35. Rh3 {[%clk 0:00:02.8]} 35... Rc8 {[%clk 0:00:03.6]} 36. Qd2
{[%clk 0:00:02.3]} 36... g5 {[%clk 0:00:03.6]} 37. Rg3 {[%clk 0:00:02.7]} 37...
Qd6 {[%clk 0:00:03.4]} 38. Qc1 {[%clk 0:00:02.5]} 38... Rxc7 {[%clk 0:00:03.4]}
39. Qb2 {[%clk 0:00:03]} 39... Kf7 {[%clk 0:00:02.9]} 40. Qb1 {[%clk 0:00:02.7]}
40... Rd7 {[%clk 0:00:03.1]} 41. Rf3 {[%clk 0:00:03.2]} 41... Kg7 {[%clk
0:00:03.1]} 42. Qf5 {[%clk 0:00:03.5]} 42... Qd1 {[%clk 0:00:02.8]} 43. Qxe6
{[%clk 0:00:01.9]} 43... Qxe1+ {[%clk 0:00:03.1]} 44. Kh2 {[%clk 0:00:02.8]}
44... Qc3 {[%clk 0:00:03.1]} 45. Re3 {[%clk 0:00:02.4]} 45... Qd4 {[%clk
0:00:01.9]} 46. Qf5 {[%clk 0:00:02.1]} 46... Ng4+ {[%clk 0:00:01.9]} 47. Kh3
{[%clk 0:00:02]} 47... Nxe3 {[%clk 0:00:02.2]} 48. fxe3 {[%clk 0:00:02.5]} 48...
Qd5 {[%clk 0:00:02.4]} 49. Qf2 {[%clk 0:00:02.2]} 49... Qe6+ {[%clk 0:00:02.1]}
50. g4 {[%clk 0:00:02.1]} 50... Re7 {[%clk 0:00:02.6]} 51. Qxe2 {[%clk
0:00:02.4]} 51... Qxe3+ {[%clk 0:00:03]} 52. Qxe3 {[%clk 0:00:02.9]} 52... Rxe3+
{[%clk 0:00:03.9]} 53. Kg2 {[%clk 0:00:03.7]} 53... Re2+ {[%clk 0:00:04.5]} 54.
Kf3 {[%clk 0:00:04.2]} 54... Rxa2 {[%clk 0:00:05.4]} 55. Ke4 {[%clk 0:00:04.7]}
55... Rb2 {[%clk 0:00:06.3]} 56. Kd4 {[%clk 0:00:05.5]} 56... Rxb3 {[%clk
0:00:06.6]} 57. Ke5 {[%clk 0:00:06.4]} 57... Rf3 {[%clk 0:00:06.8]} 0-1

[Event "Early-Titled-Tuesday-Blitz-February-27-2024"]
[Site "Chess.com"]
[Date "2024.02.27"]
[Round "6"]
[White "Quattroporte300"]
[Black "Orest_Vovk"]
[Result "1-0"]
[WhiteElo "2412"]
[BlackElo "2550"]
[TimeControl "180+1"]
[EndTime "9:05:43 PST"]
[Termination "Quattroporte300 won by checkmate"]

1. e4 {[%clk 0:03:00.9]} 1... g5 {[%clk 0:02:34.6]} 2. d4 {[%clk 0:03:00.1]}
2... g4 {[%clk 0:02:33.6]} 3. Qxg4 {[%clk 0:02:57.2]} 3... d5 {[%clk 0:02:29.3]}
4. Qf3 {[%clk 0:02:54.7]} 4... dxe4 {[%clk 0:02:28.6]} 5. Qxe4 {[%clk
0:02:53.8]} 5... Nf6 {[%clk 0:02:29.2]} 6. Qd3 {[%clk 0:02:52.6]} 6... Nc6
{[%clk 0:02:29.5]} 7. Nf3 {[%clk 0:02:52.6]} 7... Bg4 {[%clk 0:02:29]} 8. c3
{[%clk 0:02:51.1]} 8... Qd5 {[%clk 0:02:29]} 9. Be2 {[%clk 0:02:45.3]} 9...
O-O-O {[%clk 0:02:29.4]} 10. h3 {[%clk 0:02:40.3]} 10... Bh5 {[%clk 0:02:26.2]}
11. c4 {[%clk 0:02:32.6]} 11... Qa5+ {[%clk 0:02:12.4]} 12. Bd2 {[%clk
0:02:32.2]} 12... Qa6 {[%clk 0:02:02.6]} 13. d5 {[%clk 0:02:22.7]} 13... Bxf3
{[%clk 0:01:36.9]} 14. Qxf3 {[%clk 0:02:20.6]} 14... Nd4 {[%clk 0:01:33]} 15.
Qd3 {[%clk 0:02:14.4]} 15... Nxe2 {[%clk 0:01:32.7]} 16. Qxe2 {[%clk 0:02:14.4]}
16... e6 {[%clk 0:01:23.2]} 17. dxe6 {[%clk 0:02:06.7]} 17... fxe6 {[%clk
0:01:11.7]} 18. Nc3 {[%clk 0:02:05.6]} 18... Rg8 {[%clk 0:01:03.6]} 19. f4
{[%clk 0:01:53.7]} 19... Qc6 {[%clk 0:01:01.6]} 20. O-O {[%clk 0:01:49.1]} 20...
Rg3 {[%clk 0:00:51.5]} 21. Be1 {[%clk 0:01:44.4]} 21... Bc5+ {[%clk 0:00:49.9]}
22. Kh2 {[%clk 0:01:44.1]} 22... Rg6 {[%clk 0:00:39.5]} 23. Qf3 {[%clk
0:01:43.6]} 23... Qa6 {[%clk 0:00:35.9]} 24. b3 {[%clk 0:01:34.6]} 24... Rdg8
{[%clk 0:00:34.3]} 25. g4 {[%clk 0:01:33.4]} 25... Nxg4+ {[%clk 0:00:30.2]} 26.
hxg4 {[%clk 0:01:31.4]} 26... Rxg4 {[%clk 0:00:31.1]} 27. Bf2 {[%clk 0:01:22.2]}
27... e5 {[%clk 0:00:29]} 28. Qh3 {[%clk 0:00:56.5]} 28... Bxf2 {[%clk 0:00:26]}
29. Rxf2 {[%clk 0:00:55.1]} 29... Kb8 {[%clk 0:00:25.8]} 30. fxe5 {[%clk
0:00:43]} 30... Qg6 {[%clk 0:00:25.4]} 31. Raf1 {[%clk 0:00:37.2]} 31... a6
{[%clk 0:00:18.8]} 32. Rf8+ {[%clk 0:00:36.9]} 32... Rxf8 {[%clk 0:00:19.1]} 33.
Rxf8+ {[%clk 0:00:37.8]} 33... Ka7 {[%clk 0:00:19.6]} 34. Ne2 {[%clk 0:00:21.7]}
34... Qg5 {[%clk 0:00:15.8]} 35. Rf4 {[%clk 0:00:16.9]} 35... Rxf4 {[%clk
0:00:09.1]} 36. Qe3+ {[%clk 0:00:17.2]} 36... b6 {[%clk 0:00:09.5]} 37. Qxf4
{[%clk 0:00:17.6]} 37... Qh5+ {[%clk 0:00:10]} 38. Kg3 {[%clk 0:00:15.6]} 38...
Qxe2 {[%clk 0:00:10.9]} 39. Kh4 {[%clk 0:00:14.6]} 39... h5 {[%clk 0:00:10.4]}
40. Kg5 {[%clk 0:00:13.8]} 40... Kb8 {[%clk 0:00:06.5]} 41. Kf6 {[%clk
0:00:13.7]} 41... Qg2 {[%clk 0:00:04.5]} 42. e6 {[%clk 0:00:13.9]} 42... Qg8
{[%clk 0:00:04.7]} 43. e7 {[%clk 0:00:13.3]} 43... Qe8 {[%clk 0:00:04.3]} 44.
Qh6 {[%clk 0:00:11.9]} 44... Qc6+ {[%clk 0:00:03.4]} 45. Kg7 {[%clk 0:00:12.3]}
45... Qd7 {[%clk 0:00:02.9]} 46. Qf6 {[%clk 0:00:06]} 46... Qg4+ {[%clk
0:00:02.3]} 47. Kf7 {[%clk 0:00:05.9]} 47... Ka7 {[%clk 0:00:02.3]} 48. e8=Q
{[%clk 0:00:06.1]} 48... h4 {[%clk 0:00:03.2]} 49. Qee6 {[%clk 0:00:06]} 49...
Qg3 {[%clk 0:00:02.7]} 50. Ke7 {[%clk 0:00:04.9]} 50... h3 {[%clk 0:00:03]} 51.
Qfe5 {[%clk 0:00:04.5]} 51... Qg8 {[%clk 0:00:01.9]} 52. Qxg8 {[%clk 0:00:03.9]}
52... Kb7 {[%clk 0:00:02]} 53. Qgh8 {[%clk 0:00:03.9]} 53... a5 {[%clk
0:00:02.9]} 54. Qxh3 {[%clk 0:00:04.1]} 54... Ka6 {[%clk 0:00:03.8]} 55. c5
{[%clk 0:00:03.6]} 55... a4 {[%clk 0:00:04.7]} 56. Qd3+ {[%clk 0:00:03.5]} 56...
Ka5 {[%clk 0:00:05.6]} 57. Qdc3+ {[%clk 0:00:03.8]} 57... Kb5 {[%clk 0:00:05.4]}
58. Qe2+ {[%clk 0:00:04.3]} 58... Kc6 {[%clk 0:00:05.4]} 59. cxb6+ {[%clk
0:00:04.9]} 59... Kb7 {[%clk 0:00:06.3]} 60. Qe4+ {[%clk 0:00:05]} 60... Ka6
{[%clk 0:00:07.2]} 61. Qxa4+ {[%clk 0:00:04.7]} 61... Kb7 {[%clk 0:00:07.4]} 62.
Qxc7# {[%clk 0:00:05.1]} 1-0

[Event "Early-Titled-Tuesday-Blitz-February-27-2024"]
[Site "Chess.com"]
[Date "2024.02.27"]
[Round "6"]
[White "SashaKuzhilniy"]
[Black "leclash"]
[Result "1/2-1/2"]
[WhiteElo "2608"]
[BlackElo "2424"]
[TimeControl "180+1"]
[EndTime "9:05:47 PST"]
[Termination "Game drawn by repetition"]

1. c4 {[%clk 0:03:00.9]} 1... e6 {[%clk 0:03:00]} 2. g3 {[%clk 0:03:01.3]} 2...
d5 {[%clk 0:02:59.9]} 3. Bg2 {[%clk 0:03:02]} 3... Nf6 {[%clk 0:03:00.4]} 4. Nf3
{[%clk 0:03:02.3]} 4... c6 {[%clk 0:03:00]} 5. b3 {[%clk 0:03:00.2]} 5... Nbd7
{[%clk 0:02:59.7]} 6. O-O {[%clk 0:03:00.5]} 6... Bd6 {[%clk 0:03:00.2]} 7. Bb2
{[%clk 0:03:01.1]} 7... O-O {[%clk 0:03:00.1]} 8. d3 {[%clk 0:03:01.4]} 8... Qe7
{[%clk 0:02:59.6]} 9. a3 {[%clk 0:02:59.1]} 9... a5 {[%clk 0:02:56.6]} 10. Nc3
{[%clk 0:02:56]} 10... Re8 {[%clk 0:02:56.2]} 11. Qd2 {[%clk 0:02:48]} 11... e5
{[%clk 0:02:37.7]} 12. cxd5 {[%clk 0:02:46.9]} 12... cxd5 {[%clk 0:02:37.6]} 13.
Nb5 {[%clk 0:02:43.3]} 13... Bb8 {[%clk 0:02:36.7]} 14. Rac1 {[%clk 0:02:39.6]}
14... Nf8 {[%clk 0:02:24.6]} 15. a4 {[%clk 0:02:28.5]} 15... Bf5 {[%clk
0:02:16.5]} 16. Ba3 {[%clk 0:02:27.1]} 16... Qd7 {[%clk 0:02:16.7]} 17. d4
{[%clk 0:02:20.7]} 17... e4 {[%clk 0:02:08.5]} 18. Ne5 {[%clk 0:02:20.5]} 18...
Qd8 {[%clk 0:01:32.6]} 19. Rc3 {[%clk 0:02:09.2]} 19... Rxe5 {[%clk 0:01:11.1]}
20. dxe5 {[%clk 0:02:08.8]} 20... Bxe5 {[%clk 0:01:12]} 21. Nd4 {[%clk
0:02:08.2]} 21... Bd7 {[%clk 0:01:06.4]} 22. Rfc1 {[%clk 0:02:02.4]} 22... Ne6
{[%clk 0:01:04.6]} 23. e3 {[%clk 0:02:02]} 23... Ng5 {[%clk 0:01:01.2]} 24. h4
{[%clk 0:01:54.8]} 24... Nf3+ {[%clk 0:00:59.2]} 25. Nxf3 {[%clk 0:01:54.4]}
25... exf3 {[%clk 0:00:56.4]} 26. Bxf3 {[%clk 0:01:55]} 26... Bxc3 {[%clk
0:00:56.5]} 27. Qxc3 {[%clk 0:01:54.8]} 27... Rc8 {[%clk 0:00:54.7]} 28. Qd4
{[%clk 0:01:51]} 28... Rxc1+ {[%clk 0:00:52.3]} 29. Bxc1 {[%clk 0:01:51.9]}
29... Qc7 {[%clk 0:00:49.9]} 30. Bb2 {[%clk 0:01:50.9]} 30... Be6 {[%clk
0:00:36]} 31. Qc3 {[%clk 0:01:35.1]} 31... Qxc3 {[%clk 0:00:33.6]} 32. Bxc3
{[%clk 0:01:35.2]} 32... d4 {[%clk 0:00:31.4]} 33. Bxd4 {[%clk 0:01:27.4]} 33...
Bxb3 {[%clk 0:00:30.4]} 34. Bxb7 {[%clk 0:01:28]} 34... Bxa4 {[%clk 0:00:29.9]}
35. Bc3 {[%clk 0:01:28.4]} 35... Bd7 {[%clk 0:00:22.8]} 36. Bxa5 {[%clk
0:01:28.4]} 36... h5 {[%clk 0:00:23.2]} 37. Bc3 {[%clk 0:01:26.6]} 37... Kh7
{[%clk 0:00:22]} 38. Bxf6 {[%clk 0:01:26]} 38... gxf6 {[%clk 0:00:21.9]} 39. Kg2
{[%clk 0:01:26.4]} 39... Kg6 {[%clk 0:00:21.9]} 40. Kf3 {[%clk 0:01:26.7]} 40...
Be6 {[%clk 0:00:20.9]} 41. Kf4 {[%clk 0:01:26.4]} 41... Bd7 {[%clk 0:00:21]} 42.
Be4+ {[%clk 0:01:25.8]} 42... f5 {[%clk 0:00:20.9]} 43. Bc2 {[%clk 0:01:25.3]}
43... Be6 {[%clk 0:00:21.2]} 44. Ke5 {[%clk 0:01:25.3]} 44... Bc8 {[%clk
0:00:20.7]} 45. Ba4 {[%clk 0:01:20.3]} 45... Bb7 {[%clk 0:00:20.5]} 46. Bb3
{[%clk 0:01:19.5]} 46... Bf3 {[%clk 0:00:19.6]} 47. Bc2 {[%clk 0:01:18.4]} 47...
Bg4 {[%clk 0:00:19.8]} 48. Kf4 {[%clk 0:01:17.7]} 48... Kf6 {[%clk 0:00:18.8]}
49. f3 {[%clk 0:01:14.3]} 49... Bh3 {[%clk 0:00:18.8]} 50. Bd3 {[%clk
0:01:14.8]} 50... Bg2 {[%clk 0:00:18.3]} 51. Be2 {[%clk 0:00:56.8]} 51... Bh3
{[%clk 0:00:16.5]} 52. Bd3 {[%clk 0:00:54.4]} 52... Bg2 {[%clk 0:00:16.7]} 53.
Bc2 {[%clk 0:00:54]} 53... Bh3 {[%clk 0:00:14.6]} 54. Bb1 {[%clk 0:00:54.3]}
54... Bg2 {[%clk 0:00:08.9]} 55. Bxf5 {[%clk 0:00:54.6]} 55... Bxf3 {[%clk
0:00:09.6]} 56. Kxf3 {[%clk 0:00:55.5]} 56... Kxf5 {[%clk 0:00:10]} 57. e4+
{[%clk 0:00:52.6]} 57... Ke5 {[%clk 0:00:10.3]} 58. Ke3 {[%clk 0:00:50.8]} 58...
f6 {[%clk 0:00:09.8]} 59. Kf3 {[%clk 0:00:43.7]} 59... f5 {[%clk 0:00:10]} 60.
exf5 {[%clk 0:00:43.3]} 60... Kxf5 {[%clk 0:00:10.9]} 61. Kf2 {[%clk 0:00:43.1]}
61... Kf6 {[%clk 0:00:07.9]} 62. Ke1 {[%clk 0:00:42.5]} 62... Ke5 {[%clk
0:00:07]} 63. Kf2 {[%clk 0:00:42.6]} 63... Kf6 {[%clk 0:00:06.7]} 64. Ke3 {[%clk
0:00:41.3]} 64... Ke5 {[%clk 0:00:07.2]} 65. Kd3 {[%clk 0:00:41.9]} 65... Kd5
{[%clk 0:00:07.6]} 66. Kd2 {[%clk 0:00:41.9]} 66... Kd4 {[%clk 0:00:08]} 67. Ke2
{[%clk 0:00:42.3]} 67... Ke4 {[%clk 0:00:08.6]} 68. Kf2 {[%clk 0:00:43]} 68...
Kd4 {[%clk 0:00:06.4]} 69. Kf3 {[%clk 0:00:42.9]} 69... Ke5 {[%clk 0:00:07]} 70.
Ke3 {[%clk 0:00:41.9]} 70... Kf5 {[%clk 0:00:07.4]} 71. Kf3 {[%clk 0:00:42.6]}
71... Ke5 {[%clk 0:00:08]} 72. Kf2 {[%clk 0:00:36.7]} 72... Ke4 {[%clk
0:00:08.2]} 73. Kg2 {[%clk 0:00:37.4]} 73... Ke3 {[%clk 0:00:08]} 74. Kh3 {[%clk
0:00:36.6]} 74... Kf3 {[%clk 0:00:06.8]} 75. Kh2 {[%clk 0:00:37.1]} 75... Kf2
{[%clk 0:00:06.5]} 76. Kh3 {[%clk 0:00:36.3]} 76... Kf3 {[%clk 0:00:06.9]} 77.
Kh2 {[%clk 0:00:37]} 77... Kf2 {[%clk 0:00:07.4]} 78. Kh3 {[%clk 0:00:37.6]}
78... Kf3 {[%clk 0:00:08]} 1/2-1/2